bitfinex-derivatives/quotes_BTCF0:USTF0_20250422
["timestamp","ask_amount","ask_price","bid_price","bid_amount"]
[1745338804367,1.2664,90789.0,90788.0,0.41375209]
[1745338804760,1.2664,90789.0,90788.0,0.4121]
[1745338804956,1.2664,90789.0,90788.0,0.39447297]
[1745338805168,1.2664,90789.0,90788.0,0.36803186]
[1745338805763,1.2654,90789.0,90788.0,0.47811026]
[1745338806063,1.2664,90789.0,90788.0,0.47811026]
[1745338806258,1.2664,90789.0,90788.0,0.36803186]
[1745338806462,1.0801,90789.0,90788.0,0.36803186]
[1745338806967,0.1651219,90786.0,90774.0,0.1608073]
[1745338807159,0.386,90785.0,90779.0,0.0550441]
[1745338807359,0.386,90785.0,90771.0,0.01165907]
[1745338807360,0.386,90785.0,90784.0,0.1100832]
[1745338808966,0.387,90785.0,90784.0,0.4708832]
[1745338809162,0.001,90789.0,90788.0,0.1100784]
[1745338809466,0.001,90789.0,90788.0,0.1700784]
[1745338809663,0.20548112,90797.0,90796.0,0.1090687]
[1745338809860,0.1971,90797.0,90796.0,0.4898687]
[1745338810056,0.00016521,90798.0,90797.0,0.1100675]
[1745338810259,0.00854358,90798.0,90797.0,0.3294675]
[1745338810463,0.00016521,90798.0,90797.0,0.5129675]
[1745338810657,0.00016521,90798.0,90797.0,0.5119675]
[1745338811266,0.00316521,90798.0,90797.0,0.5119675]
[1745338811858,0.01145354,90798.0,90797.0,0.2338275]
[1745338812168,0.19716521,90798.0,90797.0,0.2338275]
[1745338812863,0.69316521,90798.0,90797.0,0.4241275]
[1745338813058,0.69416521,90798.0,90797.0,0.4241275]
[1745338813262,0.69416521,90798.0,90797.0,0.57959345]
[1745338813458,0.69416521,90798.0,90797.0,0.20739345]
[1745338814967,0.70246311,90798.0,90797.0,0.57959345]
[1745338815163,0.51046311,90798.0,90797.0,0.57959345]
[1745338816058,0.01046311,90798.0,90797.0,0.57959345]
[1745338816568,0.01042311,90798.0,90797.0,0.59959345]
[1745338816771,0.01042311,90798.0,90797.0,1.37182944]
[1745338816963,0.00026,90805.0,90804.0,0.09629303]
[1745338817165,0.3847,90838.0,90808.0,0.09078325]
[1745338817471,0.3847,90828.0,90808.0,0.92368325]
[1745338817671,0.3847,90828.0,90808.0,1.21880325]
[1745338818065,0.0133995,90809.0,90808.0,1.46880325]
[1745338818272,0.006,90809.0,90808.0,1.46880325]
[1745338819583,0.007,90809.0,90808.0,1.46880325]
[1745338819972,0.00016521,90818.0,90817.0,0.1100432]
[1745338820165,4e-08,90818.0,90817.0,0.9329432]
[1745338820374,0.1961,90837.0,90836.0,0.1100202]
[1745338820673,0.1961,90837.0,90836.0,0.2152202]
[1745338821166,0.1961,90837.0,90836.0,0.2142202]
[1745338821363,0.6961,90837.0,90836.0,0.2142202]
[1745338821665,0.6961,90837.0,90836.0,0.2245852]
[1745338822162,0.6971,90837.0,90836.0,0.2245852]
[1745338822365,0.7053244,90837.0,90836.0,0.19816035]
[1745338822572,0.7053244,90837.0,90836.0,0.18679535]
[1745338822768,0.7073244,90837.0,90836.0,0.18779535]
[1745338823069,0.7073244,90837.0,90836.0,0.55969535]
[1745338823371,0.7073244,90837.0,90836.0,0.37589535]
[1745338824071,0.7073244,90837.0,90836.0,0.18779535]
[1745338825274,0.7093244,90837.0,90836.0,0.18879535]
[1745338825571,0.7073244,90837.0,90836.0,0.18779535]
[1745338825767,0.7093244,90837.0,90836.0,0.18879535]
[1745338826968,0.7093244,90837.0,90836.0,0.17503279]
[1745338827868,0.7083244,90837.0,90836.0,0.17503279]
[1745338829177,0.7083244,90837.0,90834.0,0.1052]
[1745338829379,0.1838,90836.0,90834.0,0.1052]
[1745338829577,0.1838,90836.0,90834.0,0.2152226]
[1745338829774,0.3894,90835.0,90834.0,0.1052]
[1745338829969,0.3894,90835.0,90834.0,0.0859314]
[1745338830178,0.5814,90835.0,90834.0,0.0859314]
[1745338830382,0.5814,90835.0,90834.0,0.06050589]
[1745338830583,1.0814,90835.0,90834.0,0.06050589]
[1745338831277,1.0814,90835.0,90834.0,0.06150589]
[1745338831872,1.0834,90835.0,90834.0,0.17152849]
[1745338832277,1.0854,90835.0,90834.0,0.17152849]
[1745338833079,1.0854,90835.0,90834.0,0.1120226]
[1745338833679,0.891,90835.0,90834.0,0.1120226]
[1745338834285,0.891,90835.0,90834.0,0.002]
[1745338834477,0.891,90835.0,90834.0,0.1120226]
[1745338834877,0.891,90835.0,90834.0,0.002]
[1745338837593,0.891,90835.0,90830.0,0.20346366]
[1745338837887,0.1853,90834.0,90830.0,0.09343656]
[1745338838288,0.1853,90834.0,90830.0,0.12202422]
[1745338838482,0.1100263,90831.0,90830.0,0.06701072]
[1745338838784,0.110025,90832.0,90830.0,0.06701072]
[1745338838986,0.110025,90832.0,90830.0,0.06801072]
[1745338838987,0.3755,90831.0,90830.0,0.06801072]
[1745338839179,0.3755,90831.0,90830.0,0.06901072]
[1745338839593,0.3755,90831.0,90830.0,0.001]
[1745338839784,0.4855263,90831.0,90830.0,0.001]
[1745338839984,0.0550139,90830.0,90828.0,0.1052]
[1745338840192,0.1100287,90829.0,90828.0,0.1052]
[1745338840384,0.2953287,90829.0,90828.0,0.1052]
[1745338840888,0.1853,90829.0,90828.0,0.0859291]
[1745338841088,0.501,90831.0,90830.0,0.1100275]
[1745338841490,0.501,90831.0,90830.0,0.1090275]
[1745338841785,0.501,90831.0,90830.0,0.4895275]
[1745338841986,0.501,90831.0,90830.0,0.4885275]
[1745338842381,0.5,90831.0,90830.0,0.1170275]
[1745338842699,0.501,90831.0,90830.0,0.1180275]
[1745338843287,0.694,90831.0,90830.0,0.1190275]
[1745338843992,0.694,90831.0,90830.0,0.2242275]
[1745338844185,0.502,90831.0,90830.0,0.2242275]
[1745338844486,0.502,90831.0,90830.0,0.4107275]
[1745338845080,0.3948,90831.0,90830.0,0.5208235]
[1745338845282,0.3948,90831.0,90830.0,1.1929235]
[1745338845488,0.3948,90831.0,90830.0,1.2029235]
[1745338845883,0.3948,90831.0,90830.0,0.9529235]
[1745338846291,0.002,90831.0,90830.0,0.92649916]
[1745338847387,1e-07,90831.0,90830.0,1.53729916]
[1745338847986,1e-07,90831.0,90830.0,1.52353718]
[1745338848186,1e-08,90846.0,90845.0,0.1100093]
[1745338848380,0.00823524,90846.0,90845.0,0.8816093]
[1745338848584,0.00823524,90846.0,90845.0,1.2416853]
[1745338848981,0.00823524,90846.0,90845.0,1.4224853]
[1745338849698,0.01323524,90846.0,90845.0,1.4244853]
[1745338850392,0.01323524,90846.0,90845.0,1.1744853]
[1745338850596,0.00923524,90846.0,90845.0,1.1744853]
[1745338851486,0.00923524,90846.0,90845.0,0.1620093]
[1745338851683,0.00923524,90846.0,90845.0,0.1120093]
[1745338852095,0.37003524,90846.0,90845.0,0.1120093]
[1745338852289,0.56203524,90846.0,90845.0,0.09274214]
[1745338852482,0.56203524,90846.0,90845.0,0.1120093]
[1745338853292,0.56303524,90846.0,90845.0,0.1110093]
[1745338853493,0.56203524,90846.0,90845.0,0.1100093]
[1745338853685,0.56403524,90846.0,90845.0,0.1110093]
[1745338854085,1.06403524,90846.0,90845.0,0.1110093]
[1745338854388,1.06403524,90846.0,90845.0,0.08458738]
[1745338854893,1.06603524,90846.0,90845.0,0.08558738]
[1745338855089,1.06503524,90846.0,90845.0,0.26718738]
[1745338855293,1.06303524,90846.0,90845.0,0.27618738]
[1745338855495,1.06303524,90846.0,90845.0,0.38082738]
[1745338855694,0.70223524,90846.0,90845.0,0.38082738]
[1745338855885,0.70223523,90846.0,90845.0,0.68320338]
[1745338856088,0.51023523,90846.0,90845.0,0.88590338]
[1745338856493,0.01023523,90846.0,90845.0,0.88590338]
[1745338858300,0.01023523,90846.0,90845.0,1.29800338]
[1745338858496,0.01023523,90846.0,90845.0,1.28424522]
[1745338858892,0.00923523,90846.0,90845.0,1.28524522]
[1745338859290,0.00823523,90846.0,90845.0,1.28424522]
[1745338859494,0.001,90846.0,90845.0,1.28524522]
[1745338859899,1e-07,90846.0,90845.0,1.28524522]
[1745338860794,0.00016521,90855.0,90854.0,0.1099984]
[1745338860992,0.00016521,90855.0,90854.0,0.6208664]
[1745338861506,0.00016521,90855.0,90854.0,0.6198664]
[1745338861690,0.00016521,90855.0,90854.0,0.9826664]
[1745338862099,0.00216521,90855.0,90854.0,0.9826664]
[1745338862289,0.00416521,90855.0,90854.0,0.9836664]
[1745338862600,0.00416521,90855.0,90854.0,0.95725176]
[1745338863198,0.00416521,90855.0,90854.0,0.84718376]
[1745338864092,0.01233446,90855.0,90854.0,1.27089173]
[1745338864495,0.3608,90893.0,90857.0,0.0549968]
[1745338864702,0.3793,90875.0,90868.0,0.4707815]
[1745338864895,0.3793,90875.0,90874.0,0.1099742]
[1745338865094,0.1853,90875.0,90874.0,0.5908142]
[1745338865299,0.00838056,90875.0,90874.0,0.5908142]
[1745338865600,0.3847,90886.0,90885.0,0.1099609]
[1745338865801,0.7455,90886.0,90885.0,0.5190609]
[1745338866208,0.9375,90886.0,90885.0,0.5190609]
[1745338866699,1.4375,90886.0,90885.0,0.5160609]
[1745338867099,1.4375,90886.0,90885.0,0.50818633]
[1745338867294,1.4375,90886.0,90885.0,0.50618633]
[1745338867898,1.4415,90886.0,90885.0,0.50618633]
[1745338868299,1.4445,90886.0,90885.0,0.51618633]
[1745338868490,1.4445,90886.0,90885.0,0.50618633]
[1745338869100,1.4445,90886.0,90885.0,0.49243116]
[1745338870297,1.45273354,90886.0,90885.0,0.49243116]
[1745338870599,1.45273354,90886.0,90885.0,0.59707116]
[1745338871100,1.45273354,90886.0,90885.0,0.51674]
[1745338871302,1.45273354,90886.0,90885.0,0.5220609]
[1745338871502,1.45273354,90886.0,90885.0,0.6267009]
[1745338874204,0.89993354,90886.0,90885.0,0.74672889]
[1745338874396,0.01523354,90886.0,90885.0,0.76672889]
[1745338874699,0.02202901,90900.0,90892.0,0.0549757]
[1745338874904,1e-08,90900.0,90899.0,0.8315439]
[1745338875095,1e-08,90900.0,90899.0,1.5384239]
[1745338875299,1e-08,90900.0,90899.0,1.6464359]
[1745338875495,0.0083887,90900.0,90899.0,2.0206359]
[1745338877002,0.0083887,90900.0,90899.0,1.4694239]
[1745338877207,0.2003887,90900.0,90899.0,1.4734239]
[1745338878101,0.0083887,90900.0,90899.0,1.4774239]
[1745338878404,0.0083887,90900.0,90899.0,1.6747239]
[1745338878602,0.0083887,90900.0,90899.0,1.8631239]
[1745338878811,0.0083887,90900.0,90899.0,2.2752239]
[1745338879611,0.0083887,90900.0,90899.0,2.26147275]
[1745338880403,0.0083887,90900.0,90899.0,2.39148475]
[1745338883905,1e-07,90900.0,90899.0,2.39148475]
[1745338884101,0.1963,90908.0,90907.0,0.1099343]
[1745338884300,0.1963,90908.0,90907.0,1.0070343]
[1745338884810,0.1963,90908.0,90907.0,1.0270343]
[1745338885107,0.3883,90908.0,90907.0,1.5194343]
[1745338885304,0.3883,90908.0,90907.0,1.5254343]
[1745338885905,0.192,90908.0,90907.0,1.5254343]
[1745338886108,0.00826222,90908.0,90907.0,1.5254343]
[1745338886307,3e-08,90909.0,90908.0,0.1099331]
[1745338886501,3e-08,90909.0,90908.0,0.2799331]
[1745338886706,3e-08,90909.0,90908.0,1.058036]
[1745338887802,3e-08,90909.0,90908.0,1.067036]
[1745338889607,0.1808,90927.0,90926.0,0.1099113]
[1745338889808,0.43903088,90927.0,90926.0,0.4221]
[1745338890004,0.54901089,90927.0,90926.0,0.09895153]
[1745338890312,1.10181089,90927.0,90911.0,0.0549641]
[1745338890504,0.3608,90915.0,90914.0,0.1099258]
[1745338891213,0.5528,90915.0,90914.0,0.1099258]
[1745338891804,0.5528,90915.0,90914.0,0.2141258]
[1745338892215,0.5528,90915.0,90914.0,0.2171258]
[1745338893415,0.5528,90915.0,90914.0,0.1988745]
[1745338894012,0.5528,90915.0,90914.0,0.1978745]
[1745338894317,0.5538,90915.0,90914.0,0.1948745]
[1745338894816,0.5548,90915.0,90914.0,0.1948745]
[1745338895009,0.5558,90915.0,90914.0,0.16847256]
[1745338896508,0.5548,90915.0,90914.0,0.16847256]
[1745338896710,0.5578,90915.0,90914.0,0.16847256]
[1745338897016,0.5568,90915.0,90914.0,0.16847256]
[1745338897713,0.5558,90915.0,90914.0,0.16847256]
[1745338898112,0.5528,90915.0,90914.0,0.16847256]
[1745338898307,0.5558,90915.0,90914.0,0.16847256]
[1745338898708,0.5558,90915.0,90914.0,0.1042]
[1745338899113,0.5558,90915.0,90914.0,0.2141258]
[1745338899416,0.196,90915.0,90914.0,0.2141258]
[1745338899616,0.5538,90915.0,90914.0,0.2141258]
[1745338899819,0.5548,90915.0,90914.0,0.2141258]
[1745338900411,0.5538,90915.0,90914.0,0.20037486]
[1745338900617,0.5548,90915.0,90914.0,0.20037486]
[1745338901216,0.5538,90915.0,90914.0,0.20037486]
[1745338902721,0.5528,90915.0,90914.0,0.20037486]
[1745338903115,0.5528,90915.0,90914.0,0.1099258]
[1745338903417,0.5528,90915.0,90914.0,0.2140858]
[1745338903619,0.5538,90915.0,90914.0,0.2140858]
[1745338905012,0.5528,90915.0,90914.0,0.2140858]
[1745338905713,0.5528,90915.0,90914.0,0.19483448]
[1745338906114,0.5528,90915.0,90914.0,0.19583448]
[1745338906314,0.5528,90915.0,90914.0,0.19683448]
[1745338906717,0.5528,90915.0,90914.0,0.19583448]
[1745338906923,0.5528,90915.0,90914.0,0.15523176]
[1745338907118,0.5528,90915.0,90914.0,0.15623176]
[1745338907314,0.5528,90915.0,90914.0,0.2150858]
[1745338908611,0.192,90915.0,90914.0,0.5758858]
[1745338909321,0.192,90915.0,90914.0,0.2150858]
[1745338909516,0.5528,90915.0,90914.0,0.2150858]
[1745338909916,0.5528,90915.0,90914.0,0.2170858]
[1745338910620,0.5528,90915.0,90914.0,0.2150858]
[1745338910820,0.5528,90915.0,90914.0,0.09140906]
[1745338911023,0.6627246,90915.0,90914.0,0.10416]
[1745338911223,0.5528,90915.0,90914.0,0.10416]
[1745338911519,1.1627246,90915.0,90914.0,0.10416]
[1745338911716,1.2727166,90915.0,90914.0,0.10416]
[1745338912019,1.6456166,90915.0,90914.0,0.10416]
[1745338912220,1.6476166,90915.0,90914.0,0.10416]
[1745338912428,1.4277,90915.0,90914.0,0.10416]
[1745338912721,1.4257,90915.0,90914.0,0.2140858]
[1745338912926,1.4297,90915.0,90914.0,0.17447984]
[1745338914323,1.4297,90915.0,90914.0,0.15522668]
[1745338914725,1.0669,90915.0,90914.0,0.15522668]
[1745338915228,1.0679,90915.0,90914.0,0.15522668]
[1745338915531,1.0679,90915.0,90914.0,0.55032668]
[1745338915920,0.5669,90915.0,90914.0,0.55032668]
[1745338916120,0.5659,90915.0,90914.0,0.15522668]
[1745338916322,0.5669,90915.0,90914.0,0.15522668]
[1745338917628,0.5659,90915.0,90914.0,0.15622668]
[1745338918024,0.5660852,90915.0,90914.0,0.15622668]
[1745338918630,0.5650852,90915.0,90914.0,0.35052668]
[1745338919328,0.5650852,90915.0,90914.0,0.32312463]
[1745338919630,0.5650852,90915.0,90914.0,0.12882463]
[1745338920527,1.0650852,90915.0,90914.0,0.12982463]
[1745338920925,1.0650852,90915.0,90914.0,0.01989883]
[1745338921322,1.0650852,90915.0,90914.0,0.11607345]
[1745338921921,1.0660852,90915.0,90914.0,0.11607345]
[1745338922123,1.0670852,90915.0,90914.0,0.11507345]
[1745338922931,1.0660852,90915.0,90914.0,0.11507345]
[1745338923129,1.0650852,90915.0,90914.0,0.11507345]
[1745338923537,1.0650852,90915.0,90914.0,0.0958218]
[1745338924028,1.0650852,90915.0,90914.0,0.0968218]
[1745338925329,1.0650852,90915.0,90914.0,0.001]
[1745338925529,1.0650852,90915.0,90914.0,0.1109258]
[1745338926828,1.0650852,90915.0,90914.0,0.1099258]
[1745338927023,0.8785852,90915.0,90914.0,0.1109258]
[1745338927225,0.49661614,90915.0,90914.0,0.5182258]
[1745338927425,0.19711614,90915.0,90914.0,0.5182258]
[1745338927628,0.19711614,90915.0,90914.0,0.97716933]
[1745338927832,0.3608,90934.0,90928.0,0.1099089]
[1745338928126,0.01312062,90929.0,90928.0,0.1199089]
[1745338928528,0.01312062,90929.0,90928.0,0.13116452]
[1745338928736,0.01312062,90929.0,90928.0,0.50686452]
[1745338929131,0.20512062,90929.0,90928.0,0.50686452]
[1745338930126,0.01312062,90929.0,90928.0,0.50686452]
[1745338931536,0.01312062,90929.0,90928.0,0.60581605]
[1745338931739,0.01312062,90929.0,90928.0,0.59581605]
[1745338932038,0.01312062,90929.0,90928.0,0.56282123]
[1745338932337,0.20512062,90929.0,90928.0,0.56282123]
[1745338933130,0.20512062,90929.0,90928.0,0.48590715]
[1745338933530,0.20512062,90929.0,90928.0,0.59581605]
[1745338933739,0.20512062,90929.0,90928.0,0.09895153]
[1745338933936,0.56592062,90929.0,90928.0,0.09895153]
[1745338934240,0.20512062,90929.0,90928.0,0.20886043]
[1745338934434,0.70512062,90929.0,90928.0,0.20886043]
[1745338934636,0.70512062,90929.0,90928.0,0.22037452]
[1745338935036,0.70512062,90929.0,90928.0,0.59817452]
[1745338935235,0.70612062,90929.0,90928.0,0.57177747]
[1745338935540,0.70712062,90929.0,90928.0,0.57177747]
[1745338935839,0.70612062,90929.0,90928.0,0.57177747]
[1745338936141,0.70512062,90929.0,90928.0,0.57177747]
[1745338936837,0.20512062,90929.0,90928.0,0.57177747]
[1745338937741,0.20512062,90929.0,90928.0,0.19397747]
[1745338938038,0.70512062,90929.0,90928.0,0.18246338]
[1745338938839,0.70812062,90929.0,90928.0,0.18246338]
[1745338939045,0.90422062,90929.0,90928.0,0.18246338]
[1745338939246,0.90522062,90929.0,90928.0,0.18246338]
[1745338939432,0.90522062,90929.0,90928.0,0.19388479]
[1745338939636,0.90322062,90929.0,90928.0,0.19388479]
[1745338940535,0.90322062,90929.0,90928.0,0.56378479]
[1745338941143,0.90222062,90929.0,90928.0,0.56378479]
[1745338941342,0.90322062,90929.0,90928.0,0.56378479]
[1745338941544,0.90322062,90929.0,90928.0,0.54453631]
[1745338941739,0.90222062,90929.0,90928.0,0.54453631]
[1745338942739,0.90122062,90929.0,90928.0,0.53078736]
[1745338942946,0.90122062,90929.0,90928.0,0.34228736]
[1745338943141,0.90122062,90929.0,90928.0,0.31588836]
[1745338943440,0.90122062,90929.0,90928.0,0.30273031]
[1745338943842,0.90122062,90929.0,90928.0,0.12133031]
[1745338944235,0.90122062,90929.0,90928.0,0.22485031]
[1745338945037,0.90222062,90929.0,90928.0,0.11494141]
[1745338945443,1.26402062,90929.0,90928.0,0.10352]
[1745338945642,1.62399662,90929.0,90915.0,0.10352]
[1745338945842,0.4707234,90916.0,90915.0,0.10352]
[1745338946344,0.0549694,90904.0,90903.0,0.10352]
[1745338946545,0.3608,90904.0,90903.0,0.2134591]
[1745338947043,0.9707379,90904.0,90903.0,0.10352]
[1745338947245,1.5397379,90904.0,90903.0,0.10352]
[1745338947552,1.5397379,90904.0,90903.0,0.2134591]
[1745338948541,1.5397379,90904.0,90903.0,0.10752]
[1745338948747,1.4298,90904.0,90903.0,0.11052]
[1745338948945,1.5397379,90904.0,90903.0,0.2204591]
[1745338949643,1.6497459,90904.0,90903.0,0.2204591]
[1745338949846,1.6497459,90904.0,90857.0,0.3608]
[1745338949847,0.1649225,90897.0,90896.0,0.10978209]
[1745338950045,0.7216,90897.0,90896.0,0.1099471]
[1745338950239,0.9136,90897.0,90896.0,0.1099471]
[1745338950649,1.291,90897.0,90896.0,0.1099471]
[1745338950947,1.791,90897.0,90896.0,0.1099471]
[1745338951153,1.9009464,90897.0,90896.0,0.08353478]
[1745338951351,1.9009464,90897.0,90890.0,0.0549773]
[1745338951352,0.0549749,90895.0,90890.0,0.0549773]
[1745338951650,0.3774,90894.0,90893.0,0.1099512]
[1745338951849,0.4873505,90894.0,90892.0,0.1099519]
[1745338952049,0.432375,90894.0,90888.0,0.10352]
[1745338952246,1.124375,90894.0,90892.0,0.1099517]
[1745338952446,0.3608,90893.0,90890.0,0.0549772]
[1745338952751,0.47082,90893.0,90889.0,0.054978]
[1745338953055,0.109956,90889.0,90888.0,0.10352]
[1745338953554,0.11002401,90889.0,90881.0,0.109965]
[1745338953751,0.1099669,90880.0,90879.0,0.054984]
[1745338953946,0.4157837,90880.0,90875.0,0.10352]
[1745338954141,0.3721,90879.0,90876.0,0.0549858]
[1745338954347,0.3721,90879.0,90878.0,0.1099694]
[1745338955348,0.5641,90879.0,90878.0,0.1099694]
[1745338955751,0.5641,90879.0,90878.0,0.1119694]
[1745338956053,0.20034341,90879.0,90878.0,0.1119694]
[1745338956254,0.3608,90889.0,90887.0,0.1099585]
[1745338956550,0.3608,90889.0,90887.0,0.1199585]
[1745338956951,0.3608,90889.0,90887.0,0.5028585]
[1745338958044,0.19366501,90888.0,90887.0,0.01]
[1745338958246,0.57776501,90888.0,90887.0,0.01]
[1745338958442,0.58615053,90888.0,90879.0,0.01315805]
[1745338958641,0.4707669,90880.0,90879.0,0.01]
[1745338958848,0.3608,90880.0,90879.0,0.01]
[1745338959253,1.0528,90880.0,90879.0,0.01]
[1745338959654,1.4276,90880.0,90879.0,0.01]
[1745338960844,1.4276,90880.0,90879.0,0.1199681]
[1745338961253,1.4276,90880.0,90879.0,0.014]
[1745338961751,1.4276,90880.0,90879.0,0.11756]
[1745338962447,1.4276,90880.0,90879.0,0.2275281]
[1745338962949,1.4276,90880.0,90879.0,0.06417875]
[1745338963648,1.4276,90880.0,90879.0,0.1099681]
[1745338963853,1.2338,90880.0,90879.0,0.2135281]
[1745338964443,1.2338,90880.0,90879.0,0.5044681]
[1745338964843,1.2338,90880.0,90879.0,0.6080281]
[1745338965048,1.2338,90880.0,90879.0,0.4123281]
[1745338966946,1.2358,90880.0,90879.0,0.4123281]
[1745338967152,1.2358,90880.0,90879.0,0.38591273]
[1745338967450,1.2368,90880.0,90879.0,0.38591273]
[1745338967647,1.2348,90880.0,90879.0,0.38591273]
[1745338967842,1.2358,90880.0,90879.0,0.38591273]
[1745338968447,1.2338,90880.0,90879.0,0.38591273]
[1745338968642,1.2348,90880.0,90879.0,0.38591273]
[1745338968843,1.2348,90880.0,90879.0,0.36665151]
[1745338969658,1.2348,90880.0,90879.0,0.30236]
[1745338969852,1.2348,90880.0,90879.0,0.4123281]
[1745338970643,1.2338,90880.0,90879.0,0.4133281]
[1745338971255,1.2378,90880.0,90879.0,0.2135281]
[1745338971646,1.2408,90880.0,90879.0,0.2135281]
[1745338971854,1.2398,90880.0,90879.0,0.2135281]
[1745338972362,1.2368,90880.0,90879.0,0.2135281]
[1745338972559,1.2398,90880.0,90879.0,0.2135281]
[1745338973258,1.2398,90880.0,90879.0,0.19976997]
[1745338974046,1.2388,90880.0,90879.0,0.19976997]
[1745338975048,1.2358,90880.0,90879.0,0.19976997]
[1745338975249,0.0549889,90872.0,90848.0,0.4121]
[1745338975453,0.3608,90866.0,90865.0,0.0549919]
[1745338975649,0.3608,90866.0,90865.0,0.1199851]
[1745338975862,0.4707839,90866.0,90865.0,0.174977]
[1745338976055,0.6627839,90866.0,90865.0,0.01]
[1745338976360,0.6627839,90866.0,90865.0,0.1199851]
[1745338976748,1.2304839,90866.0,90865.0,0.1199851]
[1745338976953,1.7304839,90866.0,90865.0,0.10072009]
[1745338977957,1.7304839,90866.0,90865.0,0.20388009]
[1745338979547,1.7304839,90866.0,90865.0,0.20488009]
[1745338980757,1.7304839,90866.0,90865.0,0.20588009]
[1745338981354,1.7304839,90866.0,90865.0,0.20788009]
[1745338981949,1.7304839,90866.0,90865.0,0.10472009]
[1745338982563,1.7304839,90866.0,90865.0,0.10372009]
[1745338983263,1.7304839,90866.0,90865.0,0.07829844]
[1745338983464,1.6205,90866.0,90865.0,0.07829844]
[1745338983757,1.7304839,90866.0,90865.0,0.06453722]
[1745338983961,0.28499667,90866.0,90865.0,0.43458922]
[1745338984159,0.04799636,90866.0,90865.0,0.9893371]
[1745338984351,0.04799636,90866.0,90865.0,0.9883371]
[1745338984761,0.1905,90883.0,90879.0,0.1099681]
[1745338984954,0.1905,90883.0,90879.0,0.1199681]
[1745338985556,0.3801,90883.0,90879.0,0.5024681]
[1745338985953,0.3638,90880.0,90879.0,0.5024681]
[1745338986154,0.8668,90880.0,90879.0,0.5024681]
[1745338986457,0.8668,90880.0,90879.0,0.48320829]
[1745338986656,0.8638,90880.0,90879.0,0.48320829]
[1745338986856,0.8638,90880.0,90879.0,0.48420829]
[1745338987658,0.8608,90880.0,90879.0,0.48520829]
[1745338988055,0.8608,90880.0,90879.0,0.3945]
[1745338988455,0.8608,90880.0,90879.0,0.5044681]
[1745338988656,0.8608,90880.0,90879.0,0.5064681]
[1745338990056,1.0528,90880.0,90879.0,0.46684713]
[1745338990264,1.0528,90880.0,90879.0,0.47684713]
[1745338991266,1.0528,90880.0,90879.0,0.45043315]
[1745338993960,1.0528,90880.0,90879.0,0.43667586]
[1745338995764,1.0528,90880.0,90879.0,0.5205758]
[1745338995968,0.5528,90880.0,90879.0,0.5205758]
[1745338996274,0.3608,90880.0,90879.0,0.48095512]
[1745338998976,0.3608,90880.0,90879.0,0.89305512]
[1745338999274,0.3608,90880.0,90879.0,0.6392281]
[1745339000072,0.3608,90880.0,90879.0,1.0216281]
[1745339000279,0.5528,90880.0,90879.0,1.0216281]
[1745339001277,0.3608,90880.0,90879.0,1.0216281]
[1745339004481,0.00855053,90888.0,90887.0,0.1099585]
[1745339004676,0.00855053,90888.0,90887.0,0.5320585]
[1745339005079,0.00855053,90888.0,90887.0,0.9001585]
[1745339005585,0.00955053,90888.0,90887.0,0.9001585]
[1745339006284,0.20425053,90888.0,90887.0,0.9001585]
[1745339007187,0.20525053,90888.0,90887.0,0.9001585]
[1745339007885,0.20525053,90888.0,90887.0,0.87374724]
[1745339009486,0.01055053,90888.0,90887.0,0.98377523]
[1745339009691,3e-08,90888.0,90887.0,1.00377523]
[1745339011088,0.00016501,90897.0,90887.0,1.00377523]
[1745339011089,0.00016501,90897.0,90896.0,0.1099476]
[1745339011282,0.19026501,90897.0,90896.0,0.1299476]
[1745339011590,0.55566501,90897.0,90896.0,0.1299476]
[1745339011886,0.56404547,90897.0,90896.0,0.1299476]
[1745339012087,0.75604547,90897.0,90896.0,0.1299476]
[1745339012479,0.75704547,90897.0,90896.0,0.10761616]
[1745339012678,0.75704547,90897.0,90896.0,0.11161616]
[1745339012880,0.75704547,90897.0,90896.0,0.09235922]
[1745339013080,0.75704547,90897.0,90896.0,0.10381466]
[1745339014484,0.75704547,90897.0,90896.0,0.09005971]
[1745339018987,1.47864547,90897.0,90896.0,0.09005971]
[1745339020191,1.47864547,90897.0,90896.0,0.14940304]
[1745339021282,1.47864547,90897.0,90896.0,0.13014627]
[1745339021892,1.47864547,90897.0,90896.0,0.10373698]
[1745339024292,1.47864547,90897.0,90896.0,0.11522918]
[1745339025193,1.47864547,90897.0,90896.0,0.10147431]
[1745339028892,1.47864547,90897.0,90896.0,0.14147431]
[1745339029092,1.47864547,90897.0,90896.0,0.12147431]
[1745339029895,1.47864547,90897.0,90896.0,0.07580814]
[1745339031189,1.29664547,90897.0,90896.0,0.07580814]
[1745339031391,1.29664547,90897.0,90896.0,0.85240814]
[1745339032294,1.10464547,90897.0,90896.0,0.85240814]
[1745339033198,1.29664547,90897.0,90896.0,0.85240814]
[1745339033893,0.92314547,90897.0,90896.0,0.96242414]
[1745339034094,0.92314547,90897.0,90896.0,1.08514414]
[1745339034288,0.73114547,90897.0,90896.0,1.08514414]
[1745339035092,0.73114547,90897.0,90896.0,0.98242414]
[1745339035291,0.73114547,90897.0,90896.0,0.59647394]
[1745339035486,1.09164547,90897.0,90896.0,0.6558598]
[1745339036191,0.92314547,90897.0,90896.0,0.7658758]
[1745339036900,0.92314547,90897.0,90896.0,1.1358758]
[1745339037087,0.73114547,90897.0,90896.0,1.1358758]
[1745339037687,0.73114547,90897.0,90896.0,1.1243836]
[1745339037889,0.73114547,90897.0,90896.0,1.07060156]
[1745339038086,0.73114547,90897.0,90896.0,0.96058556]
[1745339040296,0.73114547,90897.0,90896.0,0.97212658]
[1745339041591,0.73114547,90897.0,90896.0,0.99212658]
[1745339043998,0.73114547,90897.0,90896.0,0.95251531]
[1745339044201,0.005,90899.0,90898.0,0.1099452]
[1745339044397,0.12872539,90913.0,90907.0,0.0549669]
[1745339044600,0.10772247,90913.0,90912.0,0.1099282]
[1745339044798,0.10772247,90913.0,90912.0,0.1599282]
[1745339045099,0.11577432,90913.0,90912.0,0.1599282]
[1745339045297,0.30777432,90913.0,90912.0,0.1599282]
[1745339045695,0.30777432,90913.0,90910.0,0.0549647]
[1745339045696,0.30977432,90913.0,90908.0,0.31870669]
[1745339045901,0.3608,90909.0,90908.0,0.45720015]
[1745339046195,0.3608,90909.0,90908.0,0.34726705]
[1745339046394,0.3608,90909.0,90908.0,0.38848026]
[1745339046699,0.3608,90909.0,90908.0,0.36922537]
[1745339047200,0.5538,90909.0,90908.0,0.36922537]
[1745339048996,0.5538,90909.0,90908.0,0.1099331]
[1745339049502,0.9146,90909.0,90908.0,0.1099331]
[1745339050901,1.27460001,90909.0,90903.0,0.10248501]